bitfinex-derivatives/quotes_BTCF0:USTF0_20210406
["timestamp","ask_amount","ask_price","bid_price","bid_amount"]
[1617698209578,0.10725655,58722.0,58721.0,3.37149]
[1617698210081,0.10725655,58722.0,58721.0,3.64149]
[1617698210478,0.15795655,58722.0,58721.0,3.64149]
[1617698210879,0.10725655,58722.0,58721.0,3.5435]
[1617698212484,0.15895655,58722.0,58721.0,3.5435]
[1617698212783,0.10725655,58722.0,58721.0,3.5435]
[1617698213785,0.45245629,58722.0,58721.0,3.5435]
[1617698214784,0.10725655,58722.0,58721.0,3.5435]
[1617698215797,0.10725655,58722.0,58721.0,4.5435]
[1617698216012,0.15785655,58722.0,58721.0,4.5435]
[1617698216234,0.10725655,58722.0,58721.0,4.5435]
[1617698217103,0.10725655,58722.0,58721.0,4.84277825]
[1617698218090,0.10725655,58722.0,58721.0,4.5435]
[1617698218288,0.15805655,58722.0,58721.0,4.5435]
[1617698218490,0.0508,58722.0,58721.0,4.5435]
[1617698218688,0.4506,58726.0,58721.0,4.5435]
[1617698219091,0.4506,58726.0,58725.0,1.0]
[1617698219587,0.4506,58726.0,58725.0,1.27]
[1617698219789,0.4506,58726.0,58725.0,0.27]
[1617698220194,0.4506,58726.0,58725.0,0.10725655]
[1617698220413,0.4506,58726.0,58725.0,1.10725655]
[1617698220602,0.4506,58726.0,58725.0,1.37725655]
[1617698220891,0.4506,58726.0,58725.0,1.10725655]
[1617698221091,0.4506,58726.0,58725.0,1.37725655]
[1617698221290,0.5012,58726.0,58725.0,1.37725655]
[1617698222903,0.5012,58726.0,58725.0,0.37725655]
[1617698223197,4.1133,58726.0,58725.0,0.37725655]
[1617698223695,4.0627,58726.0,58725.0,0.37725655]
[1617698224416,4.0627,58726.0,58725.0,0.27]
[1617698224896,4.0627,58726.0,58719.0,0.10725655]
[1617698225095,4.0627,58726.0,58720.0,0.27]
[1617698225295,4.35787391,58726.0,58720.0,0.27]
[1617698225495,4.35787391,58726.0,58719.0,0.10725655]
[1617698225698,0.29534573,58725.0,58720.0,0.27]
[1617698225896,0.34694573,58725.0,58720.0,0.27]
[1617698226196,0.10725655,58721.0,58720.0,0.27]
[1617698227297,0.29569898,58724.0,58720.0,0.27]
[1617698227800,0.29556996,58725.0,58720.0,0.27]
[1617698228099,4.35830672,58726.0,58720.0,0.27]
[1617698228400,4.35830672,58726.0,58725.0,0.10725655]
[1617698228599,4.0627,58726.0,58725.0,0.10725655]
[1617698229099,4.71462114,58726.0,58725.0,0.37725655]
[1617698229398,4.71462114,58726.0,58725.0,0.27]
[1617698229898,4.83742114,58726.0,58719.0,0.29996895]
[1617698230099,5.27183115,58726.0,58720.0,0.27]
[1617698230299,0.10725655,58721.0,58718.0,0.29997336]
[1617698230500,0.75951834,58721.0,58719.0,0.30012652]
[1617698230699,0.75951834,58721.0,58719.0,0.57012652]
[1617698231100,0.46302673,58721.0,58720.0,0.30012589]
[1617698231300,0.46302673,58721.0,58720.0,0.57012589]
[1617698231800,0.40370905,58721.0,58720.0,0.30012589]
[1617698232002,0.40370905,58721.0,58720.0,0.57012589]
[1617698232203,0.40370905,58721.0,58720.0,0.67738244]
[1617698232907,0.40370905,58721.0,58720.0,4.72537714]
[1617698233406,0.40370905,58721.0,58720.0,5.08551286]
[1617698233611,0.45470905,58721.0,58720.0,5.08551286]
[1617698233805,0.40370905,58721.0,58720.0,1.73767714]
[1617698234003,3.66620905,58721.0,58720.0,1.73767714]
[1617698234215,3.66620905,58721.0,58720.0,2.09780812]
[1617698236027,3.66620905,58721.0,58720.0,1.73767714]
[1617698236908,0.40370905,58721.0,58720.0,2.09781028]
[1617698237307,0.45500905,58721.0,58720.0,2.09781028]
[1617698237507,0.40370905,58721.0,58720.0,2.09781028]
[1617698237922,0.10725655,58721.0,58720.0,1.09781028]
[1617698238109,0.4033403,58721.0,58720.0,1.09781028]
[1617698239914,0.4033403,58721.0,58720.0,2.09781028]
[1617698240112,0.4033403,58721.0,58720.0,2.19834028]
[1617698241116,0.4033403,58721.0,58720.0,2.63911817]
[1617698241917,0.4033403,58721.0,58720.0,2.72954354]
[1617698242517,0.10725655,58721.0,58720.0,2.63911817]
[1617698242717,0.15835655,58721.0,58720.0,2.63911817]
[1617698242917,0.10725655,58721.0,58720.0,2.72954365]
[1617698243318,0.40241078,58721.0,58720.0,1.63911817]
[1617698243519,0.10725655,58721.0,58720.0,1.63911817]
[1617698243722,0.10725655,58721.0,58720.0,2.63911817]
[1617698244122,0.10725655,58721.0,58720.0,2.19834028]
[1617698245025,0.10725655,58721.0,58720.0,2.63911652]
[1617698245325,0.10725655,58721.0,58720.0,1.19834028]
[1617698245525,0.10725655,58721.0,58720.0,1.09781028]
[1617698246126,0.460978,58721.0,58720.0,1.09781028]
[1617698247243,0.512178,58721.0,58720.0,1.09781028]
[1617698247434,0.460978,58721.0,58720.0,1.09781028]
[1617698250431,0.460978,58721.0,58720.0,0.73767714]
[1617698250854,3.368378,58721.0,58720.0,0.73767714]
[1617698251643,3.368378,58721.0,58720.0,0.63042059]
[1617698252076,4.00072446,58721.0,58720.0,0.27]
[1617698252635,5.50072446,58721.0,58720.0,0.27]
[1617698252963,5.99198887,58721.0,58717.0,0.27]
[1617698253372,4.71465655,58721.0,58720.0,0.27]
[1617698253435,4.71465655,58721.0,58663.0,5.0]
[1617698253436,4.71465655,58721.0,58714.0,0.27]
[1617698253836,1.08208543,58715.0,58710.0,0.30053912]
[1617698254036,1.08208543,58715.0,58712.0,0.27]
[1617698254437,0.10725655,58713.0,58711.0,0.27]
[1617698254738,1.08269471,58712.0,58710.0,0.30053912]
[1617698255036,1.08269471,58712.0,58711.0,0.27]
[1617698255248,0.10725655,58713.0,58711.0,0.27]
[1617698255750,1.08204073,58712.0,58711.0,0.27]
[1617698256148,4.19644073,58712.0,58708.0,0.57054456]
[1617698256363,1.08204073,58712.0,58708.0,0.57054456]
[1617698256540,1.5,58711.0,58709.0,0.27]
[1617698256749,3.1165,58710.0,58709.0,0.30054553]
[1617698257142,3.1165,58710.0,58709.0,0.57054553]
[1617698257342,3.1165,58710.0,58709.0,0.30054553]
[1617698257557,3.1165,58710.0,58696.0,0.50090921]
[1617698257558,4.19572877,58710.0,58707.0,0.30055107]
[1617698257843,1.44102201,58710.0,58709.0,0.27]
[1617698258054,1.44102201,58710.0,58707.0,0.57055107]
[1617698258055,3.0414,58708.0,58707.0,0.57055107]
[1617698258245,3.0414,58708.0,58707.0,0.30055107]
[1617698258545,3.0414,58708.0,58707.0,0.57055107]
[1617698258747,3.68792998,58708.0,58707.0,0.57055107]
[1617698260647,5.18792998,58708.0,58707.0,0.57055107]
[1617698260948,5.38792998,58708.0,58707.0,0.57055107]
[1617698261449,5.38792998,58708.0,58707.0,0.27]
[1617698261450,5.81864645,58708.0,58707.0,0.27]
[1617698261956,5.81864645,58708.0,58705.0,0.30055733]
[1617698262163,5.81864645,58708.0,58706.0,0.27]
[1617698262370,0.36181126,58707.0,58706.0,0.27]
[1617698262548,2.16906781,58707.0,58704.0,0.30056759]
[1617698262749,2.9103,58705.0,58703.0,0.30057702]
[1617698262948,1.5,58704.0,58703.0,0.30057702]
[1617698263249,2.94058084,58704.0,58703.0,0.30057702]
[1617698263849,2.94058084,58704.0,58698.0,0.30009124]
[1617698263850,2.14727185,58704.0,58698.0,0.30009124]
[1617698264553,0.4005213,58699.0,58698.0,0.30009124]
[1617698265050,0.4005213,58699.0,58698.0,0.57009124]
[1617698265456,0.10725655,58699.0,58698.0,0.57009124]
[1617698269254,0.23026655,58699.0,58698.0,0.57009124]
[1617698270656,0.52364216,58699.0,58698.0,0.57009124]
[1617698270856,2.02364216,58699.0,58698.0,0.57009124]
[1617698271057,6.07144216,58699.0,58698.0,0.30009124]
[1617698271256,6.07144216,58699.0,58698.0,0.23209124]
[1617698271456,6.07144216,58699.0,58698.0,0.16499124]
[1617698271657,6.20750401,58699.0,58684.0,0.36016603]
[1617698271956,6.20750401,58699.0,58665.0,0.56025826]
[1617698271957,7.0463567,58699.0,58681.0,0.36017832]
[1617698272156,1.0,58693.0,58681.0,0.36017832]
[1617698272356,2.7,58692.0,58681.0,0.36017832]
[1617698272557,2.7,58692.0,58680.0,0.27]
[1617698272558,0.10725655,58683.0,58682.0,0.36018212]
[1617698272757,0.25196655,58683.0,58682.0,0.36018212]
[1617698272956,0.25196655,58683.0,58680.0,0.36021698]
[1617698273156,0.25196655,58683.0,58682.0,0.27]
[1617698273357,0.25196655,58683.0,58680.0,0.36021698]
[1617698273759,0.25196655,58683.0,58681.0,0.27]
[1617698273959,0.10725655,58683.0,58679.0,0.36002064]
[1617698274361,0.10725655,58683.0,58680.0,0.27]
[1617698274561,0.10725655,58683.0,58679.0,0.36002064]
[1617698274862,0.10725655,58683.0,58680.0,0.27]
[1617698275262,0.10725655,58683.0,58681.0,0.36001361]
[1617698275663,0.10725655,58683.0,58678.0,0.35912699]
[1617698276093,0.10725655,58683.0,58682.0,0.27]
[1617698276262,0.10725655,58683.0,58681.0,4.2319]
[1617698276562,0.10725655,58683.0,58682.0,1.43757315]
[1617698277178,0.10725655,58683.0,58682.0,1.79667555]
[1617698277765,0.10725655,58683.0,58682.0,0.79667555]
[1617698278768,0.10725655,58683.0,58682.0,0.43757315]
[1617698279167,0.10725655,58683.0,58682.0,0.37725655]
[1617698279168,2.80685655,58683.0,58682.0,0.37725655]
[1617698281169,0.10725655,58683.0,58682.0,0.37725655]
[1617698281979,0.3512405,58699.0,58682.0,0.37725655]
[1617698282171,0.3512405,58699.0,58682.0,1.37725655]
[1617698282371,0.35134769,58701.0,58694.0,2.5423]
[1617698282573,0.35134769,58701.0,58699.0,0.10725655]
[1617698283172,0.35134769,58701.0,58700.0,0.27]
[1617698284671,3.07870424,58701.0,58700.0,0.27]
[1617698284873,2.72735655,58701.0,58700.0,0.27]
[1617698285074,2.72735655,58701.0,58693.0,0.10725655]
[1617698285472,2.72735655,58701.0,58694.0,0.27]
[1617698285772,2.72735655,58701.0,58693.0,0.10725655]
[1617698285973,2.72735655,58701.0,58694.0,0.27]
[1617698286674,0.10725655,58695.0,58694.0,0.27]
[1617698287075,0.10725655,58695.0,58690.0,0.27]
[1617698287475,0.10725655,58695.0,58694.0,0.27]
[1617698287678,0.10725655,58695.0,58690.0,0.27]
[1617698288178,0.10725655,58695.0,58694.0,0.27]
[1617698288380,0.10725655,58695.0,58690.0,0.27]
[1617698288589,0.10725655,58695.0,58694.0,0.27]
[1617698288975,0.10725655,58695.0,58690.0,0.27]
[1617698289176,0.10725655,58695.0,58694.0,0.27]
[1617698289575,0.10725655,58695.0,58690.0,0.27]
[1617698289975,0.10725655,58695.0,58694.0,0.27]
[1617698290178,0.10725655,58695.0,58690.0,0.27]
[1617698290577,0.10725655,58695.0,58694.0,0.27]
[1617698290776,0.10725655,58695.0,58690.0,0.27]
[1617698291076,0.10725655,58695.0,58694.0,0.27]
[1617698291376,0.10725655,58695.0,58690.0,0.27]
[1617698291776,0.10725655,58695.0,58694.0,0.27]
[1617698291976,0.10725655,58695.0,58690.0,0.27]
[1617698292378,0.10725655,58695.0,58694.0,0.27]
[1617698292577,0.10725655,58695.0,58690.0,0.27]
[1617698292977,0.10725655,58695.0,58689.0,3.8188]
[1617698292978,0.10725655,58695.0,58694.0,0.27]
[1617698293380,0.10725655,58695.0,58690.0,0.27]
[1617698293580,0.10725655,58695.0,58694.0,0.27]
[1617698293880,0.10725655,58695.0,58690.0,0.27]
[1617698294279,0.10725655,58695.0,58694.0,0.27]
[1617698294479,0.10725655,58695.0,58690.0,0.27]
[1617698294980,0.10725655,58695.0,58694.0,0.27]
[1617698295186,0.10725655,58695.0,58689.0,2.8188]
[1617698295187,0.10725655,58695.0,58690.0,0.27]
[1617698295584,0.10725655,58695.0,58694.0,0.27]
[1617698295781,0.10725655,58695.0,58690.0,0.27]
[1617698296281,0.10725655,58695.0,58694.0,0.27]
[1617698296581,0.10725655,58695.0,58690.0,0.27]
[1617698296781,0.10725655,58695.0,58694.0,1.27]
[1617698297099,0.10725655,58695.0,58694.0,4.2393]
[1617698297314,0.10725655,58695.0,58694.0,4.5093]
[1617698297681,0.10725655,58695.0,58694.0,4.5602]
[1617698297982,0.10725655,58695.0,58694.0,4.5093]
[1617698298184,0.94618326,58709.0,58694.0,4.5093]
[1617698298583,0.94618326,58709.0,58702.0,1.12286]
[1617698298882,0.94618326,58709.0,58708.0,0.10725655]
[1617698298883,0.5951,58709.0,58708.0,0.10725655]
[1617698299383,0.5951,58709.0,58708.0,0.37725655]
[1617698300283,0.5951,58709.0,58708.0,1.37725655]
[1617698300706,1.05378275,58709.0,58708.0,0.37725655]
[1617698301085,1.48418921,58709.0,58708.0,0.37725655]
[1617698301585,1.77766284,58709.0,58708.0,0.37725655]
[1617698303390,1.21915638,58709.0,58708.0,0.37725655]
[1617698303791,1.64962832,58709.0,58708.0,1.37725655]
[1617698304289,1.21915638,58709.0,58708.0,1.37725655]
[1617698304487,1.11189983,58709.0,58708.0,1.37725655]
[1617698305090,0.76047363,58709.0,58708.0,1.37725655]
[1617698307703,3.91417363,58709.0,58708.0,0.37725655]
[1617698307926,3.91417363,58709.0,58708.0,0.27]
[1617698308115,4.26584387,58709.0,58708.0,0.27]
[1617698308298,4.26584387,58709.0,58705.0,0.27]
[1617698308722,4.26584387,58709.0,58695.0,1.0]
[1617698308723,0.10725655,58706.0,58701.0,0.27]
[1617698308902,0.10725655,58706.0,58699.0,0.29983641]
[1617698309194,0.10725655,58706.0,58702.0,0.27]
[1617698309195,0.75152351,58706.0,58702.0,0.27]
[1617698309593,0.75152351,58706.0,58691.0,3.0387]
[1617698309594,0.2927167,58700.0,58695.0,0.29985]
[1617698310119,0.53652885,58706.0,58691.0,3.0387]
[1617698310120,0.0098512,58697.0,58696.0,0.27]
[1617698310493,0.0098512,58697.0,58694.0,0.29986842]
[1617698310494,0.29256057,58697.0,58693.0,0.27]
[1617698310710,0.10725655,58694.0,58693.0,0.27]
[1617698310893,0.10725655,58694.0,58691.0,3.3385682]
[1617698310894,0.10725655,58694.0,58692.0,0.2998682]
[1617698311093,0.10725655,58694.0,58693.0,0.27]
[1617698311393,0.10725655,58694.0,58693.0,0.41904435]
[1617698311716,0.10725655,58694.0,58693.0,0.68904435]
[1617698312194,0.40061642,58694.0,58693.0,0.77985422]
[1617698312394,0.40061642,58694.0,58693.0,1.04985422]
[1617698312806,0.40061642,58694.0,58693.0,1.15711077]
[1617698313029,0.75262778,58694.0,58693.0,1.15711077]
[1617698313223,0.75262778,58694.0,58693.0,2.15711077]
[1617698313401,0.64184632,58694.0,58693.0,2.15711077]
[1617698313899,0.40061642,58694.0,58693.0,2.15711077]
[1617698314598,0.40061642,58694.0,58693.0,2.59808443]
[1617698314798,0.29335987,58694.0,58693.0,2.59808443]
[1617698315199,0.29335987,58694.0,58693.0,2.15711077]
[1617698317798,0.29335987,58694.0,58693.0,1.15711077]
[1617698318099,0.29335987,58694.0,58693.0,1.03793077]
[1617698318799,0.40061642,58694.0,58693.0,1.03793077]
[1617698319800,0.40061642,58694.0,58693.0,2.03793077]
[1617698320100,0.40061642,58694.0,58693.0,1.03793077]
[1617698320400,0.40061642,58694.0,58693.0,2.03793077]
[1617698321802,0.40061642,58694.0,58693.0,2.14380077]
[1617698322405,0.40061642,58694.0,58693.0,2.58476808]
[1617698322804,0.10725655,58694.0,58693.0,2.58476808]
[1617698323004,0.10725655,58694.0,58693.0,1.47889808]
[1617698323208,0.10725655,58694.0,58693.0,2.47889808]
[1617698323406,0.4006865,58694.0,58693.0,1.47889808]
[1617698323910,0.4006865,58694.0,58693.0,1.03793077]
[1617698326109,0.75253213,58694.0,58693.0,1.03793077]
[1617698326612,0.4006865,58694.0,58693.0,2.03793077]
[1617698329513,0.4006865,58694.0,58693.0,2.47893221]
[1617698330014,0.4006865,58694.0,58693.0,2.03793077]
[1617698330413,0.4006865,58694.0,58693.0,1.03793077]
[1617698330614,3.4432865,58694.0,58693.0,1.03793077]
[1617698335520,3.79468394,58694.0,58693.0,1.47936956]
[1617698336821,3.79468394,58694.0,58693.0,1.03793077]
[1617698337219,3.79468394,58694.0,58693.0,1.47937056]
[1617698337522,3.79468394,58694.0,58693.0,1.03793077]
[1617698337925,3.79468394,58694.0,58693.0,0.93067422]
[1617698339529,4.22390928,58694.0,58693.0,0.93067422]
[1617698339958,4.22390928,58694.0,58693.0,0.56986435]
[1617698340150,5.72390928,58694.0,58693.0,0.56986435]
[1617698340627,6.41127064,58694.0,58693.0,0.27]
[1617698340934,7.21127064,58694.0,58693.0,0.27]
[1617698341126,6.21127064,58694.0,58689.0,0.30102758]
[1617698341328,6.21127064,58694.0,58690.0,0.27]
[1617698341329,5.25000705,58694.0,58690.0,0.27]
[1617698341828,5.25000705,58694.0,58673.0,1.50174285]
[1617698341829,1.55894979,58691.0,58687.0,0.57104229]
[1617698342031,1.55894979,58691.0,58687.0,0.30104229]
[1617698342433,1.55894979,58691.0,58688.0,0.27]
[1617698342630,1.09031095,58693.0,58689.0,0.3010314]
[1617698343032,0.60314833,58690.0,58687.0,0.36123188]
[1617698343432,0.60314833,58690.0,58687.0,0.63123188]
[1617698343641,0.60314763,58693.0,58689.0,0.30102622]
[1617698344153,0.60314763,58693.0,58690.0,0.27]
[1617698344154,0.84879122,58693.0,58690.0,0.27]
[1617698344543,0.36188858,58693.0,58690.0,0.57102638]
[1617698344932,1.07200641,58691.0,58690.0,0.30102638]
[1617698345341,1.07200641,58691.0,58689.0,0.3010297]
[1617698345547,1.07200641,58691.0,58690.0,0.27]
[1617698345832,1.0,58692.0,58690.0,0.27]
[1617698346232,2.09039064,58693.0,58690.0,0.27]
[1617698346533,1.31098376,58691.0,58690.0,0.27]
[1617698347033,1.06971106,58691.0,58687.0,0.27]
[1617698347251,1.06971106,58691.0,58683.0,0.570541]
[1617698347433,1.31098135,58691.0,58684.0,0.30054043]
[1617698347644,1.31098135,58691.0,58684.0,0.57054043]
[1617698347854,0.64191222,58685.0,58684.0,0.30054043]
[1617698348060,0.64191222,58685.0,58684.0,3.00984043]
[1617698348235,0.64191222,58685.0,58684.0,3.27984043]
[1617698348836,0.29178712,58685.0,58684.0,3.34015593]
[1617698349035,0.39904367,58685.0,58684.0,3.34015593]
[1617698350034,0.54125367,58685.0,58684.0,3.34015593]
[1617698350235,0.54125367,58685.0,58684.0,3.27984043]
[1617698350236,0.89131751,58685.0,58684.0,3.27984043]
[1617698351539,0.54125367,58685.0,58684.0,3.27984043]
[1617698351740,0.39904367,58685.0,58684.0,3.27984043]
[1617698352346,0.39904367,58685.0,58684.0,4.27984043]
[1617698352543,0.39904367,58685.0,58684.0,4.64033157]
[1617698352740,0.29178712,58685.0,58684.0,4.64033157]
[1617698352940,0.29178712,58685.0,58684.0,4.74758812]
[1617698353140,0.00982036,58685.0,58684.0,4.74758812]
[1617698353543,0.10725655,58687.0,58684.0,5.29092303]
[1617698354041,0.10725655,58687.0,58686.0,1.0]
[1617698354342,0.10725655,58687.0,58686.0,1.66086421]
[1617698354542,0.10725655,58687.0,58686.0,1.93086421]
[1617698354742,0.10725655,58687.0,58686.0,0.99117213]
[1617698355143,0.10725655,58687.0,58686.0,1.99117213]
[1617698355544,0.10725655,58687.0,58686.0,2.43169374]
[1617698357449,0.00985047,58691.0,58686.0,2.43169374]
[1617698357846,0.00985047,58691.0,58690.0,0.6610147]
[1617698358058,0.00985047,58691.0,58690.0,0.41235347]
[1617698358248,0.00985047,58691.0,58690.0,1.68235347]
[1617698358447,0.00985867,58692.0,58690.0,2.48374428]
[1617698358748,0.00986135,58694.0,58690.0,2.48374428]
[1617698358948,0.00986135,58694.0,58693.0,0.10725655]
[1617698359148,0.00986135,58694.0,58693.0,1.10725655]
[1617698359448,0.00986135,58694.0,58693.0,2.03823113]
[1617698359747,0.00986135,58694.0,58693.0,2.09852548]
[1617698361452,0.00986135,58694.0,58693.0,1.09852548]
[1617698361953,0.00986135,58694.0,58693.0,2.09852548]
[1617698362154,0.29316347,58695.0,58693.0,1.09852548]
[1617698362455,0.29316347,58695.0,58693.0,2.09852548]
[1617698362754,0.10725655,58700.0,58693.0,2.09852548]
[1617698362755,0.35176775,58697.0,58694.0,0.72132863]
[1617698362954,0.35176775,58697.0,58694.0,1.72132863]
[1617698363156,0.35176775,58697.0,58695.0,1.27]
[1617698363455,0.35176775,58697.0,58696.0,3.37866745]
[1617698363957,0.64466365,58697.0,58696.0,5.0695195]
[1617698364358,0.2928959,58697.0,58696.0,5.0695195]
[1617698364856,0.2928959,58697.0,58696.0,4.0695195]
[1617698365458,0.2928959,58697.0,58696.0,0.9913195]
[1617698365758,3.96566079,58697.0,58696.0,0.63076213]
[1617698366158,3.96566079,58697.0,58696.0,0.57046745]
[1617698366861,4.20684294,58697.0,58696.0,0.57046745]
[1617698367381,4.20684294,58697.0,58696.0,0.27]
[1617698367776,4.20684294,58697.0,58695.0,0.30046886]
[1617698368162,3.3215,58697.0,58696.0,0.27]
[1617698368363,0.42905742,58698.0,58696.0,0.27]
[1617698368764,0.64413096,58697.0,58696.0,0.57057888]
[1617698369163,0.64413096,58697.0,58696.0,0.30057888]
[1617698369472,0.64413096,58697.0,58696.0,0.57057888]
[1617698369672,1.07343767,58697.0,58696.0,0.27]
[1617698370165,1.07343767,58697.0,58695.0,0.57058279]
[1617698370366,1.07343767,58697.0,58696.0,0.27]
[1617698371590,1.07343767,58697.0,58696.0,1.27]
[1617698371765,0.64413096,58697.0,58696.0,1.57048998]
[1617698372366,0.64413096,58697.0,58696.0,0.57048998]
[1617698375469,0.64413096,58697.0,58696.0,1.57048998]
[1617698376069,0.64413096,58697.0,58696.0,0.57048998]
[1617698377475,0.64413096,58697.0,58696.0,1.57048998]
[1617698377673,0.35133529,58697.0,58696.0,1.57048998]
[1617698378175,0.643356,58697.0,58696.0,0.57048998]
[1617698383180,0.29202071,58697.0,58696.0,0.57048998]
[1617698383384,0.64346806,58697.0,58696.0,0.57048998]
[1617698388885,0.64346806,58697.0,58696.0,1.57048998]
[1617698389685,0.64346806,58697.0,58696.0,0.57048998]
[1617698391091,1.07312121,58697.0,58696.0,0.57048998]
[1617698394993,0.64346806,58697.0,58696.0,0.57048998]
[1617698395294,0.88465403,58697.0,58696.0,0.57048998]
[1617698395793,0.64346806,58697.0,58696.0,0.57048998]
[1617698396695,1.07317844,58697.0,58696.0,0.57048998]
[1617698397494,0.64346806,58697.0,58696.0,0.57048998]
[1617698397794,0.88465173,58697.0,58696.0,0.57048998]
[1617698398295,0.64346806,58697.0,58696.0,0.57048998]
[1617698403203,3.90686806,58697.0,58696.0,0.57048998]
[1617698403403,1.0734855,58697.0,58696.0,0.57048998]
[1617698403603,1.0734855,58697.0,58696.0,3.47408998]
[1617698404806,1.0734855,58697.0,58696.0,3.1736]
[1617698405707,1.0734855,58697.0,58696.0,3.47429905]
[1617698406006,1.0734855,58697.0,58696.0,3.83595307]
[1617698407409,1.56361722,58697.0,58696.0,3.83595307]
[1617698408715,1.0734855,58697.0,58696.0,3.83595307]
[1617698409209,1.31467268,58697.0,58696.0,3.83595307]
[1617698409511,1.0734855,58697.0,58696.0,3.83595307]
[1617698409809,1.31467306,58697.0,58696.0,3.83595307]
[1617698410210,1.0734855,58697.0,58696.0,3.83595307]
[1617698410411,1.56425442,58697.0,58696.0,3.83595307]
[1617698410610,1.56425442,58697.0,58696.0,0.93235307]
[1617698410810,4.72965442,58697.0,58696.0,0.93235307]
[1617698411514,5.33263664,58697.0,58696.0,0.93235307]
[1617698412822,2.16723664,58697.0,58696.0,0.93235307]
[1617698413321,1.56425442,58697.0,58696.0,0.93235307]
[1617698416518,1.0734855,58697.0,58696.0,0.93235307]
[1617698417823,1.0734855,58697.0,58696.0,1.03935307]
[1617698418419,1.56539964,58697.0,58696.0,1.03935307]
[1617698418619,1.0734855,58697.0,58696.0,1.03935307]
[1617698421324,1.0734855,58697.0,58696.0,2.03935307]
[1617698421527,1.0734855,58697.0,58696.0,2.14660962]
[1617698421848,1.0734855,58697.0,58696.0,5.70577239]
[1617698421849,1.31466657,58697.0,58696.0,5.70577239]
[1617698422433,0.64346806,58697.0,58696.0,5.79621279]
[1617698422724,0.88463975,58697.0,58696.0,5.79621279]
[1617698423127,0.64346806,58697.0,58696.0,5.79621279]
[1617698426733,0.64346806,58697.0,58696.0,2.67901279]
[1617698427133,0.64346806,58697.0,58696.0,2.58857239]
[1617698427634,0.64346806,58697.0,58696.0,2.67900497]
[1617698428835,0.64346806,58697.0,58696.0,1.67900497]
[1617698429235,0.64346806,58697.0,58696.0,2.67900497]
[1617698434344,0.64346806,58697.0,58696.0,1.67900497]
[1617698434544,0.64346806,58697.0,58696.0,2.67900497]
[1617698438050,0.64346806,58697.0,58696.0,1.67900497]
[1617698438551,0.64346806,58697.0,58696.0,2.67900497]
[1617698439152,4.28386806,58697.0,58696.0,2.67900497]
[1617698439553,4.52502691,58697.0,58696.0,1.03960962]
[1617698439954,4.52502691,58697.0,58696.0,0.93235307]
[1617698440553,4.52502691,58697.0,58696.0,0.57069905]
[1617698440554,4.95626345,58697.0,58696.0,0.57069905]
[1617698443657,5.44578532,58697.0,58696.0,0.27]
[1617698444058,4.95626345,58697.0,58694.0,0.5708872]
[1617698444258,4.95626345,58697.0,58696.0,0.27]
[1617698444459,4.12954948,58697.0,58696.0,0.27]
[1617698444658,4.12954948,58697.0,58695.0,0.27]
[1617698444858,5.20577539,58697.0,58695.0,0.27]
[1617698445059,5.20577539,58697.0,58694.0,0.27]
[1617698445359,4.12954948,58697.0,58696.0,0.27]
[1617698445561,4.12954948,58697.0,58694.0,0.27]
[1617698445759,4.71666338,58697.0,58694.0,0.57088685]
[1617698445958,4.71666338,58697.0,58696.0,0.27]
[1617698446259,0.60298555,58696.0,58695.0,0.27]
[1617698446558,3.6404,58697.0,58694.0,0.30088685]
[1617698446559,5.31914288,58697.0,58694.0,0.30088685]
[1617698446758,0.0512,58696.0,58695.0,0.27]
[1617698446958,0.65418633,58696.0,58695.0,0.27]
[1617698447359,1.72978109,58696.0,58695.0,0.27]
[1617698447759,1.72978109,58696.0,58695.0,3.2976]
[1617698448360,1.36798929,58696.0,58695.0,3.2976]
[1617698448561,1.31678929,58696.0,58695.0,3.2976]
[1617698449161,1.07559476,58696.0,58695.0,3.2976]
[1617698449561,1.12639476,58696.0,58695.0,3.2976]
[1617698450061,1.36758649,58696.0,58695.0,3.2976]
[1617698450665,1.36758649,58696.0,58695.0,3.59848163]
[1617698451565,1.31678649,58696.0,58695.0,3.59848163]
[1617698452065,1.31678649,58696.0,58695.0,3.2976]
[1617698452264,1.07559476,58696.0,58695.0,3.2976]
[1617698452562,1.07559476,58696.0,58695.0,0.27]
[1617698452763,4.07179476,58696.0,58695.0,0.27]
[1617698453166,4.67477228,58696.0,58695.0,0.27]
[1617698453464,4.81447228,58696.0,58695.0,0.27]
[1617698453688,4.81447228,58696.0,58693.0,0.3008174]
[1617698453906,0.10725655,58694.0,58693.0,0.3008174]
[1617698454103,1.17480556,58694.0,58691.0,0.30084079]
[1617698454306,1.17480556,58694.0,58693.0,0.27]
[1617698454707,0.10725655,58694.0,58691.0,0.27]
[1617698454974,0.10725655,58694.0,58692.0,0.27]
[1617698455184,0.10725655,58694.0,58683.0,0.36102702]
[1617698455185,1.65588353,58694.0,58687.0,0.27]
[1617698455376,1.65588353,58694.0,58683.0,0.30049171]
[1617698455671,2.7599,58684.0,58682.0,0.30049297]
[1617698455970,2.7599,58684.0,58675.0,0.44072118]
[1617698455971,0.21342655,58683.0,58678.0,0.30050021]
[1617698456269,0.21342655,58683.0,58681.0,0.27]
[1617698456470,0.2,58682.0,58678.0,0.30050021]
[1617698456670,0.2,58682.0,58679.0,0.27]
[1617698456873,0.2,58680.0,58679.0,0.27]
[1617698457071,0.2,58680.0,58676.0,0.30052328]
[1617698457072,0.66704764,58681.0,58676.0,0.30052328]
[1617698457271,1.06499027,58680.0,58679.0,0.27]
[1617698457671,1.06499027,58680.0,58675.0,0.30052984]
[1617698457973,0.10725655,58676.0,58675.0,0.30052984]
[1617698458175,0.74642518,58676.0,58675.0,0.30052984]
[1617698458372,0.74642518,58676.0,58675.0,0.57052984]
[1617698458873,0.9876776,58676.0,58675.0,0.57052984]
[1617698459472,0.10725655,58676.0,58675.0,0.57052984]
[1617698459673,0.44936415,58676.0,58675.0,0.57052984]
[1617698460173,0.74721119,58676.0,58675.0,0.57052984]
[1617698460975,0.9884662,58676.0,58675.0,0.57052984]
[1617698463074,0.9884662,58676.0,58675.0,0.27]
[1617698463476,0.9884662,58676.0,58674.0,0.57043311]
[1617698463875,0.9884662,58676.0,58675.0,0.27]
[1617698464075,0.15885655,58676.0,58675.0,0.27]
[1617698464386,0.39908208,58676.0,58675.0,0.57042636]
[1617698464976,0.39908208,58676.0,58675.0,0.30042636]
[1617698465211,0.39908208,58676.0,58675.0,0.57042636]
[1617698465525,2.97008208,58676.0,58675.0,0.57042636]
[1617698465776,3.32068286,58676.0,58675.0,0.57042636]
[1617698466580,3.32068286,58676.0,58675.0,0.71318636]
[1617698466777,0.74968286,58676.0,58675.0,0.71318636]